fUSD/lending_fUSD_20250307
["ID","MTS","AMOUNT","RATE_DAILY","PERIOD"]
[355588599,1741333927414,-900.0,0.00037185,60]
[355588600,1741333927452,-467.7982,0.000375,120]
[355588601,1741333927485,-500.0,0.00037625,120]
[355588602,1741333927522,-100000.0,0.00038,38]
[355588603,1741333927554,-2000.0,0.00038,120]
[355588604,1741333927586,-1050.0,0.00038,120]
[355588605,1741333927619,-1530.1189057,0.00038,120]
[355588606,1741333927652,-2937.16276061,0.00038,120]
[355588607,1741333927686,-332.6533705,0.00038281,60]
[355588608,1741333927723,-1647.31845629,0.00038287,35]
[355588609,1741333927757,-330.79827,0.000383,120]
[355588610,1741333927791,-782.84,0.00038356,120]
[355588611,1741333927825,-1000.0,0.000384,120]
[355588612,1741333927859,-433.06927006,0.000384,33]
[355588613,1741333927892,-153.24301772,0.000384,33]
[355588614,1741333927925,-251.62,0.000384,120]
[355588615,1741333927959,-242.34,0.000384,120]
[355588616,1741333927991,-247.36,0.000384,120]
[355588617,1741333928026,-1085.07,0.000384,120]
[355588618,1741333928061,-881.0,0.000384,120]
[355588619,1741333928097,-284.99,0.000384,120]
[355588620,1741333928133,-231.31,0.000384,120]
[355588621,1741333928172,-22500.0,0.000384,120]
[355588622,1741333928208,-1511.94,0.000384,120]
[355588623,1741333928243,-500.0,0.000384,120]
[355588624,1741333928278,-613.66,0.0003844,120]
[355588625,1741333928318,-591.68,0.0003844,120]
[355588626,1741333928355,-3702.33,0.0003844,120]
[355588627,1741333928393,-8703.57,0.0003844,120]
[355588628,1741333928431,-1410.62,0.0003844,120]
[355588629,1741333928467,-3957.79,0.0003844,120]
[355588630,1741333928504,-653.98,0.0003844,120]
[355588631,1741333928539,-10334.49,0.00038453,120]
[355588632,1741333928574,-500.0,0.00038459,120]
[355588633,1741333928608,-25000.0,0.000385,120]
[355588634,1741333928641,-175.79195112,0.000387,120]
[355588635,1741333928676,-150000.0,0.0003888,30]
[355588636,1741333928712,-3989.24,0.00038884,120]
[355588637,1741333928745,-3940.2,0.00038909,117]
[355588638,1741333928779,-430.0,0.00038986,60]
[355588639,1741333928815,-100000.0,0.00039,39]
[355588640,1741333928850,-152.38578955,0.00039,120]
[355588641,1741333928885,-3100.0,0.00039,120]
[355588642,1741333928918,-1000.0,0.00039,60]
[355588643,1741333928951,-628.58250069,0.00039,120]
[355588644,1741333928985,-467.7982,0.00039,120]
[355588645,1741333929016,-1182.08882569,0.00039,120]
[355588646,1741333929042,-500.0,0.00039293,120]
[355588647,1741333929068,-330.79831,0.000395,120]
[355588648,1741333929094,-2689.66,0.000398,60]
[355588649,1741333929119,-42249.89095994,0.000398,120]
[355588650,1741333929144,-1000.0,0.0003987,120]
[355588651,1741333929170,-4267.94554291,0.000399,120]
[355588652,1741333929195,-4000.0,0.00039987,31]
[355588653,1741333929590,-100000.0,0.0004,40]
[355588654,1741333929617,-1000.0,0.0004,120]
[355588655,1741333929643,-454.05329787,0.0004,120]
[355588656,1741333929669,-67027.3718201,0.0004,30]
[355588657,1741333929695,-3295598.83315368,0.0004,30]
[355588658,1741333938300,-3216078.13851668,0.0004,30]
[355588659,1741333938326,-10323.63817834,0.0004,30]
[355588660,1741333938351,-1194.0,0.0004,120]
[355588661,1741333938376,-162.41181011,0.0004,120]
[355588662,1741333938404,-857.08406766,0.0004,120]
[355588663,1741333938429,-302.0,0.0004,60]
[355588664,1741333938455,-10510.83093423,0.0004,30]
[355588665,1741333938480,-33589.60242592,0.0004,30]
[355588666,1741333938506,-57168.32893346,0.0004,30]
[355588667,1741333938531,-300.0,0.0004,120]
[355588668,1741333938557,-4013.0,0.0004,120]
[355588669,1741333938583,-211.0,0.0004,120]
[355588670,1741333938610,-19546.72922352,0.0004,120]
[355588671,1741333938635,-165.5432,0.0004,120]
[355588672,1741333938662,-3662.8784558,0.0004,120]
[355588673,1741333938688,-1530.1189057,0.0004,120]
[355588674,1741333938713,-2937.16276061,0.0004,120]
[355588675,1741333938738,-2486.11,0.0004,120]
[355588676,1741333938763,-150.0,0.0004,30]
[355588677,1741333938789,-500.0,0.00040127,120]
[355588678,1741333938816,-2322.96,0.000408,120]
[355588679,1741333938843,-8595.6,0.00040818,117]
[355588680,1741333938871,-1985.85574,0.00040888,30]
[355588681,1741333939127,-500.0,0.00040961,120]
[355588682,1741333939172,-100000.0,0.00041,41]
[355588683,1741333939201,-1000.0,0.00041,120]
[355588684,1741333939229,-40000.0,0.00041,120]
[355588685,1741333939257,-950.0,0.00041,120]
[355588686,1741333939282,-227.06068882,0.00041,30]
[355588687,1741333939309,-21151.58,0.00041,120]
[355588688,1741333939335,-1760.77,0.00041,30]
[355588689,1741333939361,-2041.82906508,0.00041044,45]
[355588690,1741333939387,-1985.85574,0.00041088,30]
[355588691,1741333939414,-591.10899251,0.00041095,120]
[355588692,1741333939438,-1041.66,0.00041095,120]
[355588693,1741333939464,-500.0,0.00041095,120]
[355588694,1741333939490,-500.0,0.00041095,120]
[355588695,1741333939515,-500.0,0.00041095,120]
[355588696,1741333939540,-500.0,0.00041095,120]
[355588697,1741333939564,-500.0,0.00041095,120]
[355588698,1741333939590,-369.14411337,0.00041095,120]
[355588699,1741333939615,-1985.85574,0.00041288,30]
[355588700,1741333939640,-1041.66,0.00041369,120]
[355588701,1741333939667,-1000.0,0.000414,120]
[355588702,1741333939691,-1985.85574,0.00041488,30]
[355588703,1741333939715,-200.0,0.00041576,120]
[355588704,1741333939740,-1041.66,0.00041643,120]
[355588705,1741333939766,-1985.85574,0.00041688,30]
[355588706,1741333939790,-500.0,0.00041796,120]
[355588707,1741333939815,-1985.85574,0.00041888,30]
[355588708,1741333939839,-1041.66,0.00041917,120]
[355588709,1741333939864,-620.52150773,0.00041999,120]
[355588710,1741333939891,-100000.0,0.00042,42]
[355588711,1741333939917,-1042.0,0.00042,120]
[355588712,1741333939943,-1000.0,0.00042,120]
[355588713,1741333939967,-3031.71344522,0.00042,120]
[355588714,1741333939992,-2642.62,0.00042,120]
[355588715,1741333940017,-109000.01,0.00042,90]
[355588716,1741333940042,-342.84394739,0.00042,120]
[355588717,1741333940067,-348.06641073,0.00042,120]
[355588718,1741333940092,-1985.85574,0.00042088,30]
[355588719,1741333940117,-1041.66,0.00042191,120]
[355588720,1741333940142,-160.0,0.000422,120]
[355588721,1741333940167,-1985.85574,0.00042288,30]
[355588722,1741333940193,-1041.66,0.00042465,120]
[355588723,1741333940219,-1985.85574,0.00042488,30]
[355588724,1741333940244,-500.0,0.0004263,120]
[355588725,1741333940268,-1985.85574,0.00042688,30]
[355588726,1741333940295,-9311.9,0.00042727,117]
[355588727,1741333940322,-1041.66,0.00042739,120]
[355588728,1741333940347,-172.73,0.0004274,91]
[355588729,1741333940373,-2566.89,0.000428,90]
[355588730,1741333940399,-1985.85574,0.00042888,30]
[355588731,1741333940427,-1804.0,0.00042911,90]
[355588732,1741333940452,-200.0,0.00042918,120]
[355588733,1741333940481,-100000.0,0.00043,43]
[355588734,1741333940506,-5000.0,0.00043,120]
[355588735,1741333940532,-1000.0,0.00043,120]
[355588736,1741333940556,-500.0,0.00043,120]
[355588737,1741333940583,-2814.87387544,0.00043,120]
[355588738,1741333940607,-4172.51308234,0.00043,30]
[355588739,1741333940631,-150.12,0.00043,90]
[355588740,1741333940657,-3060.2378114,0.00043,120]
[355588741,1741333940682,-5874.32552122,0.00043,120]
[355588742,1741333940708,-1041.66,0.00043013,120]
[355588743,1741333940735,-1985.85574,0.00043088,30]
[355588744,1741333940761,-130000.0,0.0004321,120]
[355588745,1741333940788,-1041.66,0.00043287,120]
[355588746,1741333940813,-1985.85574,0.00043288,30]
[355588747,1741333940841,-192.25068376,0.00043299,120]
[355588748,1741333940867,-3989.24,0.00043362,120]
[355588749,1741333940893,-549.905344,0.00043464,120]
[355588750,1741333940919,-1985.85574,0.00043488,30]
[355588751,1741333940944,-156.91208486,0.000435,120]
[355588752,1741333940969,-17000.0,0.000435,120]
[355588753,1741333940995,-1041.66,0.00043561,120]
[355588754,1741333941020,-1000.0,0.00043568,90]
[355588755,1741333941045,-1985.85574,0.00043688,30]
[355588756,1741333941070,-239.35186367,0.000437,120]
[355588757,1741333941095,-1041.66,0.00043835,120]
[355588758,1741333941119,-1000.0,0.00043987,120]
[355588759,1741333941145,-454.45862649,0.00043998,120]
[355588760,1741333941171,-9153.98320019,0.00043998,120]
[355588761,1741333941197,-8749.55716402,0.00043998,120]
[355588762,1741333941224,-100000.0,0.00044,44]
[355588763,1741333941250,-500.0,0.00044,120]
[355588764,1741333941275,-5000.0,0.00044,120]
[355588765,1741333941303,-500.0,0.00044,120]
[355588766,1741333941327,-500.0,0.00044,120]
[355588767,1741333941352,-25038.74854901,0.00044,30]
[355588768,1741333941379,-850.0,0.00044,120]
[355588769,1741333941404,-516.651239,0.00044,57]
[355588770,1741333941430,-161.0,0.00044,90]
[355588771,1741333941455,-1985.85574,0.00044088,30]
[355588772,1741333941480,-1041.66,0.00044109,120]
[355588773,1741333941505,-1000.0,0.00044225,90]
[355588774,1741333941532,-200.0,0.0004426,120]
[355588775,1741333941556,-1985.85574,0.00044288,30]
[355588776,1741333941582,-1041.66,0.00044383,120]
[355588777,1741333941607,-15693.04578268,0.000444,120]
[355588778,1741333941632,-160.0,0.000444,120]
[355588779,1741333941657,-241.78437499,0.0004444,30]
[355588780,1741333941684,-2275.0175044,0.00044479,30]
[355588781,1741333941709,-1985.85574,0.00044488,30]
[355588782,1741333941734,-927.44012583,0.000445,120]
[355588783,1741333941758,-10028.19,0.00044636,117]
[355588784,1741333941785,-1041.66,0.00044657,120]
[355588785,1741333941810,-1985.85574,0.00044688,30]
[355588786,1741333942063,-1000.0,0.00044883,90]
[355588787,1741333942089,-1985.85574,0.00044888,30]
[355588788,1741333942114,-31274.10339302,0.000449,120]
[355588789,1741333942140,-1041.66,0.00044931,120]
[355588790,1741333942169,-100000.0,0.00045,45]
[355588791,1741333942195,-500.0,0.00045,120]
[355588792,1741333942220,-5196.0,0.00045,120]
[355588793,1741333942246,-565896.3493908,0.00045,120]
[355588794,1741333947845,-100000.0,0.00034,34]
[355588795,1741333947878,-150.0,0.00043998,30]
[355588796,1741333947903,-434103.6506092,0.00045,120]
[355588797,1741333947930,-2000000.0,0.00045,120]
[355588798,1741333947954,-512.2154192,0.00045,120]
[355588799,1741333947979,-2179.67203437,0.00045,120]
[355588800,1741333948003,-300.0,0.00045,120]
[355588801,1741333948027,-9634.18300585,0.00045,120]
[355588802,1741333948052,-30000.0,0.00045,120]
[355588803,1741333948076,-1013.0,0.00045,60]
[355588804,1741333948100,-101808.26622197,0.00045,120]
[355588805,1741333948124,-20000.0,0.00045,120]
[355588806,1741333948149,-2659.97,0.00045,30]
[355588807,1741333948176,-2000000.0,0.00045,120]
[355588808,1741333948201,-111224.21479571,0.00045,60]
[355588809,1741333948225,-810.78155589,0.00045,120]
[355588810,1741333948250,-40092.0,0.00045,120]
[355588811,1741333948275,-508.28672874,0.00045,120]
[355588812,1741333948301,-5083.99134152,0.00045,30]
[355588813,1741333948326,-44822.61139688,0.00045,120]
[355588814,1741333948352,-95097.15689067,0.00045,120]
[355588815,1741333960214,-1251.19490424,0.00045,120]
[355588816,1741333960240,-204.6,0.00045,120]
[355588817,1741333960264,-2582.69948787,0.00045,120]
[355588818,1741333960289,-17632.59460523,0.00045,30]
[355588819,1741333960316,-151.0,0.00045,120]
[355588820,1741333960341,-151.0,0.00045,120]
[355588821,1741333960367,-158.2,0.00045,85]
[355588822,1741333960713,-10000.0,0.00045,120]
[355588823,1741333960745,-286.59295856,0.00045,68]
[355588824,1741333960770,-150.0,0.00045,30]
[355588825,1741333960796,-1985.85574,0.00045088,30]
[355588826,1741333960821,-1041.66,0.00045205,120]
[355588827,1741333960850,-1985.85574,0.00045288,30]
[355588828,1741333960876,-1041.66,0.00045479,120]
[355588829,1741333960902,-1985.85574,0.00045488,30]
[355588830,1741333960931,-1000000.0,0.000455,120]
[355588831,1741333960956,-839.36432455,0.000455,120]
[355588832,1741333960982,-200.0,0.00045601,120]
[355588833,1741333961008,-3678.49088369,0.00045678,60]
[355588834,1741333961033,-1985.85574,0.00045688,30]
[355588835,1741333961059,-5000.0,0.0004569,30]
[355588836,1741333961083,-359.52365241,0.000457,120]
[355588837,1741333961110,-1000.0,0.00045705,90]
[355588838,1741333961137,-1041.66,0.00045753,120]
[355588839,1741333961164,-1985.85574,0.00045888,30]
[355588840,1741333961192,-571052.67938385,0.00045889,120]
[355588841,1741333961219,-430.0,0.00045987,120]
[355588842,1741333961245,-1000.0,0.00045999,120]
[355588843,1741333961272,-100000.0,0.00046,46]
[355588844,1741333961298,-1000.0,0.00046,120]
[355588845,1741333961328,-1000000.0,0.00046,120]
[355588846,1741333961355,-1000000.0,0.00046,120]
[355588847,1741333961382,-1269817.8010996,0.00046,120]
[355588849,1741334607923,-250.0,8.556e-05,2]
[355588850,1741334625072,2020.34,0.0001459,120]
[355588851,1741334718587,-691.48,8.521e-05,2]
[355588852,1741334888508,-243.2,8.219e-05,2]
[355588853,1741335032033,-1349.33,8.219e-05,2]
[355588854,1741335032043,-200.0,8.301e-05,2]
[355588855,1741335032054,-243.2,8.437e-05,2]
[355588856,1741335032064,-165.87,8.592e-05,2]
[355588857,1741335032074,-3227.66402337,8.664e-05,2]
[355588858,1741335032087,-20672.33597663,8.664e-05,2]
[355588859,1741335032097,-2000.0,8.664e-05,2]
[355588860,1741335032108,-500.0,8.736e-05,2]
[355588861,1741335032119,-152.62,8.74e-05,2]
[355588862,1741335032130,-695.51,8.74e-05,2]
[355588863,1741335032140,-324.49,8.78e-05,2]
[355588864,1741335032151,-542.94,8.78e-05,2]
[355588865,1741335032162,-1000.0,8.826e-05,2]
[355588866,1741335032173,-200.0,8.849e-05,2]
[355588867,1741335032184,-477.17,8.861e-05,2]
[355588868,1741335032195,-602.69,8.861e-05,2]
[355588869,1741335032204,-500.0,8.904e-05,2]
[355588870,1741335032214,-500.0,8.986e-05,2]
[355588871,1741335032225,-3615.84,8.989e-05,2]
[355588872,1741335032234,-700.0,9.1e-05,3]
[355588873,1741335032244,-150.0,9.155e-05,2]
[355588874,1741335032254,-150.0,9.155e-05,2]
[355588875,1741335032263,-1400.0,9.2e-05,3]
[355588876,1741335032275,-184.55,9.232e-05,2]
[355588877,1741335032284,-2100.0,9.3e-05,3]
[355588878,1741335032293,-507.0,9.342e-05,2]
[355588879,1741335032302,-2800.0,9.4e-05,3]
[355588880,1741335032312,-3509.62722667,9.481e-05,2]
[355588881,1741335032321,-150.0,9.489e-05,2]
[355588882,1741335032331,-268.7417,9.489e-05,2]
[355588883,1741335032340,-651.6343,9.49e-05,2]
[355588884,1741335032350,-299.5491,9.49e-05,2]
[355588885,1741335032360,-7929.8081,9.491e-05,2]
[355588886,1741335032370,-30287.61524172,9.491e-05,2]
[355588887,1741335032384,-35709.19105828,9.491e-05,2]
[355588888,1741335032394,-500.0,9.491e-05,2]
[355588889,1741335032403,-880.7117,9.491e-05,2]
[355588890,1741335032413,-3600.0,9.5e-05,3]
[355588891,1741335032422,-605.68682793,9.562e-05,2]
[355588895,1741335032450,-425.57877207,9.562e-05,2]
[355588896,1741335032701,-2039.62,9.588e-05,2]
[355588897,1741335032711,-1874.03,9.588e-05,2]
[355588898,1741335032720,-2684.99,9.588e-05,2]
[355588899,1741335032730,-1293.22,9.588e-05,2]
[355588900,1741335032740,-3303.45,9.588e-05,2]
[355588901,1741335032750,-4651.8,9.588e-05,2]
[355588902,1741335032760,-500.0,9.588e-05,2]
[355588903,1741335032769,-2859.32,9.588e-05,2]
[355588904,1741335032779,-872.6,9.588e-05,2]
[355588905,1741335032790,-1742.18,9.588e-05,2]
[355588906,1741335032799,-500.0,9.588e-05,2]
[355588907,1741335032808,-5183.98,9.588e-05,2]
[355588908,1741335032819,-2179.96,9.588e-05,2]
[355588909,1741335032830,-500.0,9.588e-05,2]
[355588910,1741335032839,-2213.25,9.588e-05,2]
[355588911,1741335032849,-832.1,9.588e-05,2]
[355588912,1741335032858,-3560.87,9.588e-05,2]
[355588913,1741335032869,-14803.51,9.588e-05,2]
[355588914,1741335032878,-1641.92,9.588e-05,2]
[355588915,1741335032887,-1693.93,9.588e-05,2]
[355588916,1741335032897,-3356.07,9.588e-05,2]
[355588917,1741335032907,-734.54,9.588e-05,2]
[355588918,1741335032920,-500.0,9.588e-05,2]
[355588919,1741335032930,-951.92,9.588e-05,2]
[355588920,1741335032939,-500.0,9.589e-05,2]
[355588921,1741335032949,-613.1,9.589e-05,2]
[355588922,1741335032959,-1712.16,9.589e-05,2]
[355588923,1741335032969,-500.0,9.589e-05,2]
[355588924,1741335032978,-500.0,9.589e-05,2]
[355588925,1741335032987,-1604.79,9.589e-05,2]
[355588926,1741335032997,-500.0,9.589e-05,2]
[355588927,1741335033006,-882.56,9.589e-05,2]
[355588928,1741335033015,-566.68,9.589e-05,2]
[355588929,1741335033025,-500.0,9.589e-05,2]
[355588930,1741335033035,-500.0,9.589e-05,2]
[355588931,1741335033045,-663.93,9.589e-05,2]
[355588932,1741335033054,-500.0,9.589e-05,2]
[355588933,1741335033064,-511.95926748,9.589e-05,2]
[355588934,1741335033074,-500.0,9.589e-05,2]
[355588935,1741335033083,-500.0,9.589e-05,2]
[355588936,1741335033092,-865.05,9.589e-05,2]
[355588937,1741335033102,-500.0,9.589e-05,2]
[355588938,1741335033112,-500.0,9.589e-05,2]
[355588939,1741335033122,-500.0,9.589e-05,2]
[355588940,1741335033132,-500.0,9.589e-05,2]
[355588941,1741335033142,-500.0,9.589e-05,2]
[355588942,1741335033151,-500.0,9.589e-05,2]
[355588943,1741335033161,-500.0,9.589e-05,2]
[355588944,1741335033172,-500.0,9.589e-05,2]
[355588945,1741335033182,-1456.87,9.589e-05,2]
[355588946,1741335033191,-500.0,9.589e-05,2]
[355588947,1741335033201,-500.0,9.589e-05,2]
[355588948,1741335033210,-500.0,9.589e-05,2]
[355588949,1741335033220,-778.71,9.589e-05,2]
[355588950,1741335033232,-500.0,9.589e-05,2]
[355588951,1741335033242,-500.0,9.589e-05,2]
[355588952,1741335033252,-500.0,9.589e-05,2]
[355588953,1741335033262,-500.0,9.589e-05,2]
[355588954,1741335033273,-1360.87,9.589e-05,2]
[355588955,1741335033283,-500.0,9.589e-05,2]
[355588956,1741335033292,-478.1382809,9.589e-05,2]
[355588957,1741335033302,-690.75,9.589e-05,2]
[355588958,1741335033311,-500.0,9.589e-05,2]
[355588959,1741335033321,-561.95,9.589e-05,2]
[355588960,1741335033331,-201.88143114,9.589e-05,2]
[355588961,1741335033340,-680.92,9.589e-05,2]
[355588962,1741335033350,-500.0,9.589e-05,2]
[355588963,1741335033360,-490.62170148,9.589e-05,2]
[355588964,1741335033370,-1159.39,9.589e-05,2]
[355588965,1741335033380,-500.0,9.589e-05,2]
[355588966,1741335033390,-500.0,9.589e-05,2]
[355588967,1741335033399,-633.25816666,9.589e-05,2]
[355588968,1741335033409,-535.76,9.589e-05,2]
[355588969,1741335033418,-500.0,9.589e-05,2]
[355588970,1741335033428,-500.0,9.589e-05,2]
[355588971,1741335033438,-500.0,9.589e-05,2]
[355588972,1741335033448,-500.0,9.589e-05,2]
[355588973,1741335033457,-700.59,9.589e-05,2]
[355588974,1741335033467,-500.0,9.589e-05,2]
[355588975,1741335033476,-508.29394748,9.589e-05,2]
[355588976,1741335033487,-511.09741557,9.589e-05,2]
[355588977,1741335033496,-500.0,9.589e-05,2]
[355588978,1741335033505,-500.0,9.589e-05,2]
[355588979,1741335033516,-500.0,9.589e-05,2]
[355588980,1741335033525,-500.0,9.589e-05,2]
[355588981,1741335033535,-500.0,9.589e-05,2]
[355588982,1741335033544,-1015.46,9.589e-05,2]
[355588983,1741335033554,-500.0,9.589e-05,2]
[355588984,1741335033563,-500.0,9.589e-05,2]
[355588985,1741335033572,-500.0,9.589e-05,2]
[355588986,1741335033582,-629.2,9.589e-05,2]
[355588987,1741335033591,-500.0,9.589e-05,2]
[355588988,1741335033601,-500.0,9.589e-05,2]
[355588989,1741335033610,-1532.502687,9.589e-05,2]
[355588990,1741335033620,-539.36,9.589e-05,2]
[355588991,1741335033630,-506.96291151,9.589e-05,2]
[355588992,1741335033640,-701.58,9.589e-05,2]
[355588993,1741335033649,-507.79942372,9.589e-05,2]
[355588994,1741335033658,-500.0,9.589e-05,2]
[355588995,1741335033668,-500.0,9.589e-05,2]
[355588996,1741335033677,-500.0,9.589e-05,2]
[355588997,1741335033687,-1061.47,9.589e-05,2]
[355588998,1741335033698,-524.19091584,9.589e-05,2]
[355588999,1741335033709,-653.3,9.589e-05,2]
[355589000,1741335033719,-500.0,9.589e-05,2]
[355589001,1741335033728,-500.0,9.589e-05,2]
[355589002,1741335033739,-625.08,9.589e-05,2]
[355589003,1741335033748,-1434.45,9.589e-05,2]
[355589004,1741335033758,-500.0,9.589e-05,2]
[355589005,1741335033769,-544.48833625,9.589e-05,2]
[355589006,1741335033778,-500.0,9.589e-05,2]
[355589007,1741335033790,-1338.76,9.589e-05,2]
[355589008,1741335033799,-507.93571693,9.589e-05,2]
[355589009,1741335033809,-500.0,9.589e-05,2]
[355589010,1741335033819,-500.0,9.589e-05,2]
[355589011,1741335033829,-500.0,9.589e-05,2]
[355589012,1741335033841,-500.0,9.589e-05,2]
[355589013,1741335033850,-500.0,9.589e-05,2]
[355589014,1741335033860,-500.0,9.589e-05,2]
[355589015,1741335033870,-500.0,9.589e-05,2]
[355589016,1741335033882,-973.642868,9.589e-05,2]
[355589017,1741335033892,-500.0,9.589e-05,2]
[355589018,1741335033903,-510.7738053,9.589e-05,2]
[355589019,1741335033912,-500.0,9.589e-05,2]
[355589020,1741335033922,-500.0,9.589e-05,2]
[355589021,1741335033933,-500.0,9.589e-05,2]
[355589022,1741335033943,-500.0,9.589e-05,2]
[355589023,1741335033952,-407.11943972,9.589e-05,2]
[355589024,1741335033961,-511.29386244,9.589e-05,2]
[355589025,1741335033971,-556.20492283,9.589e-05,2]
[355589026,1741335033980,-500.0,9.589e-05,2]
[355589027,1741335033990,-500.0,9.589e-05,2]
[355589028,1741335033999,-500.0,9.589e-05,2]
[355589029,1741335034008,-500.0,9.589e-05,2]
[355589030,1741335034017,-500.0,9.589e-05,2]
[355589031,1741335034027,-500.0,9.589e-05,2]
[355589032,1741335034037,-500.0,9.589e-05,2]
[355589033,1741335034048,-500.0,9.589e-05,2]
[355589034,1741335034057,-500.0,9.589e-05,2]
[355589035,1741335034066,-500.0,9.589e-05,2]
[355589036,1741335034076,-500.0,9.589e-05,2]
[355589037,1741335034085,-500.0,9.589e-05,2]
[355589038,1741335034094,-508.7934834,9.589e-05,2]
[355589039,1741335034104,-500.0,9.589e-05,2]
[355589040,1741335034113,-627.28,9.589e-05,2]
[355589041,1741335034124,-543.7,9.589e-05,2]
[355589042,1741335034135,-500.0,9.589e-05,2]
[355589043,1741335034145,-500.0,9.589e-05,2]
[355589044,1741335034155,-1323.07,9.589e-05,2]
[355589045,1741335034165,-500.0,9.589e-05,2]
[355589046,1741335034174,-500.0,9.589e-05,2]
[355589047,1741335034184,-500.0,9.589e-05,2]
[355589048,1741335034193,-500.0,9.589e-05,2]
[355589049,1741335034203,-500.0,9.589e-05,2]
[355589050,1741335034213,-500.0,9.589e-05,2]
[355589051,1741335034222,-634.37,9.589e-05,2]
[355589052,1741335034232,-500.0,9.589e-05,2]
[355589053,1741335034241,-500.0,9.589e-05,2]
[355589054,1741335034250,-370.99676826,9.589e-05,2]
[355589055,1741335034259,-500.0,9.589e-05,2]
[355589056,1741335034270,-500.0,9.589e-05,2]
[355589057,1741335034279,-500.0,9.589e-05,2]
[355589058,1741335034289,-1424.88,9.589e-05,2]
[355589059,1741335034298,-500.0,9.589e-05,2]
[355589060,1741335034307,-500.0,9.589e-05,2]
[355589061,1741335034317,-500.0,9.589e-05,2]
[355589062,1741335034326,-500.0,9.589e-05,2]
[355589063,1741335034335,-500.0,9.589e-05,2]
[355589064,1741335034345,-500.0,9.589e-05,2]
[355589065,1741335034354,-500.0,9.589e-05,2]
[355589066,1741335034364,-1805.98,9.589e-05,2]
[355589067,1741335034374,-1227.1,9.589e-05,2]
[355589068,1741335034385,-1144.84,9.589e-05,2]
[355589069,1741335034394,-500.0,9.589e-05,2]
[355589070,1741335034403,-500.0,9.589e-05,2]
[355589071,1741335034413,-500.0,9.589e-05,2]
[355589072,1741335034422,-500.0,9.589e-05,2]
[355589073,1741335034432,-500.0,9.589e-05,2]
[355589074,1741335034441,-500.0,9.589e-05,2]
[355589075,1741335034450,-500.0,9.589e-05,2]
[355589076,1741335034460,-500.0,9.589e-05,2]
[355589077,1741335034469,-500.0,9.589e-05,2]
[355589078,1741335034479,-500.0,9.589e-05,2]
[355589079,1741335034488,-500.0,9.589e-05,2]
[355589080,1741335034498,-500.0,9.589e-05,2]
[355589081,1741335034507,-709.79,9.589e-05,2]
[355589082,1741335034516,-500.0,9.589e-05,2]
[355589083,1741335034525,-500.0,9.589e-05,2]
[355589084,1741335034536,-500.0,9.589e-05,2]
[355589085,1741335034545,-500.0,9.589e-05,2]
[355589086,1741335034554,-500.0,9.589e-05,2]
[355589087,1741335034564,-1756.41,9.589e-05,2]
[355589088,1741335034573,-500.0,9.589e-05,2]
[355589089,1741335034582,-1319.7,9.589e-05,2]
[355589090,1741335034592,-894.25,9.589e-05,2]
[355589091,1741335034601,-500.0,9.589e-05,2]
[355589092,1741335034610,-500.0,9.589e-05,2]
[355589093,1741335034619,-500.0,9.589e-05,2]
[355589094,1741335034630,-500.0,9.589e-05,2]
[355589095,1741335034639,-500.0,9.589e-05,2]
[355589096,1741335034648,-2371.86,9.589e-05,2]
[355589097,1741335034658,-640.28,9.589e-05,2]
[355589098,1741335034667,-1452.75,9.589e-05,2]
[355589099,1741335034676,-500.0,9.589e-05,2]
[355589100,1741335034686,-500.0,9.589e-05,2]
[355589101,1741335034696,-500.0,9.589e-05,2]
[355589102,1741335034707,-537.8,9.589e-05,2]